Cogmind - Beta 13 @@@ ROGUE MODE // 2024.05.27 @ 20:23:50 Player: JTMusky Result: Destroyed by H-66 Slayer with Gauss Rifle Performance ------------- Evolutions (4) 2000 Regions Visited (5) 1000 Robots Destroyed (7) 35 Value Destroyed (97) 97 Prototype IDs (3) 60 Alien Tech Used (0) 0 Bonus (0) 0 TOTAL SCORE: 3192 Bonus ------- None Cogmind --------- Core Integrity 0/850 Matter 250/300 Energy 98/100 System Corruption 0% Temperature Cool (0) Movement Core (50) Location -6/Factory Parts ------- > --- POWER (2) -------- (None) > --- PROPULSION (4) --- (None) > --- UTILITY (6) ------ Advanced Targeting Computer Hacking Suite > --- WEAPON (3) ------- (None) > --- INVENTORY (5) ---- Decoy Drone Bay (0/16) Peak State ------------ > --- POWER ------------ Nuclear Core > --- PROPULSION ------- VTOL Module VTOL Module > --- UTILITY ---------- Weight Redist. System Sensor Array Signal Interpreter Seismic Detector Decoy Drone Bay > --- WEAPON ----------- Pulse Rifle Mining Laser > --- INVENTORY -------- (None) [Rating: 30] Favorites ----------- Power Improved Ion Engine Engine Improved Ion Engine Power Core Nuclear Core Propulsion VTOL Module Treads Light Treads Leg Aluminum Leg Wheel Wheel Flight Unit VTOL Module Utility Signal Interpreter Device Weight Redist. System Storage Small Storage Unit Processor Signal Interpreter Hackware Hacking Suite Weapon Medium Laser Energy Gun Medium Laser Special Weapon Mining Laser Build | -11 -10 -10 -10 -8 -6 ------- Run | Yrd Mat Min Sub Rec Fac Slots Evolved 8 | . . . . . 8 Power 1 | . . . . . 1 Propulsion 2 | . . . . . 2 Utility 4 | . . . . . 4 Weapon 1 | . . . . . 1 Parts Attached 31 | 7 10 2 . 3 9 Power 6 | 1 1 1 . 2 1 Engine 3 | 1 1 1 . . . Core 3 | . . . . 2 1 Reactor . | . . . . . . Propulsion 10 | 2 7 . . . 1 Treads 1 | . 1 . . . . Leg 2 | . 2 . . . . Wheel 2 | 2 . . . . . Hover . | . . . . . . Flight 5 | . 4 . . . 1 Utility 11 | 2 2 . . . 7 Device 7 | 1 1 . . . 5 Storage 1 | 1 . . . . . Processor 2 | . 1 . . . 1 Hackware 1 | . . . . . 1 Protection . | . . . . . . Artifact . | . . . . . . Weapon 4 | 2 . 1 . 1 . Energy Gun 3 | 2 . . . 1 . Energy Cannon . | . . . . . . Ballistic Gun . | . . . . . . Ballistic Cannon . | . . . . . . Launcher . | . . . . . . Special Weapon 1 | . . 1 . . . Impact Weapon . | . . . . . . Slashing Weapon . | . . . . . . Piercing Weapon . | . . . . . . Special Melee Weapon . | . . . . . . Unidentified Prototypes 1 | . . . . . 1 Parts Lost 13 | . 1 . . 2 10 Power 2 | . . . . 1 1 Propulsion 3 | . . . . 1 2 Utility 5 | . . . . . 5 Weapon 3 | . 1 . . . 2 Highest Loss Streak 9 | . 1 . . 2 9 To Critical Strikes . | . . . . . . Average Slot Usage (%) 88 | . 99 100 100 95 49 Engine 9 | . 14 14 14 7 . Core 2 | . . . . 5 3 Leg 5 | . 17 . . . . Flight 16 | . 7 28 28 24 8 Device 13 | . 11 14 14 14 18 Storage 3 | . 10 . . . . Processor 10 | . 6 14 14 14 6 Energy Gun 16 | . 28 14 14 14 4 Special Weapon 7 | . . 14 14 14 2 Naked Turns . | . . . . . . Heaviest Build 27 | 15 16 10 10 11 27 Greatest Support 26 | 26 26 14 14 14 14 Greatest Overweight (x) 5 | 1 5 . . 1 4 Average Overweight (x) . | . . . . . . Largest Inventory Capacity 8 | 8 8 5 5 5 5 Average Capacity 6 | 7 7 5 5 5 5 Most Carried 8 | 8 8 5 5 5 3 Average Carried 5 | 7 6 4 5 5 1 Final Capacity 8 | 8 5 5 5 5 5 Final Carried 8 | 8 5 5 5 5 2 Class Distribution -------------------- 52% | Sprinter 47% | Mutant Dominant Class ---------------- Mutant | -10/Materials Sprinter | -10/Mines Sprinter | -10/Subcaves Sprinter | -8/Recycling Sprinter | -6/Factory Resources | -11 -10 -10 -10 -8 -6 ----------- Run | Yrd Mat Min Sub Rec Fac Matter Collected 400 | 270 100 . 20 . 10 Remotely . | . . . . . . Salvage Created 344 | 117 227 . . . . Parts 17 | 8 9 . . . . Haulers Intercepted 1 | . 1 . . . . Recyclers Shooed 1 | . 1 . . . . Parts Field Recycled . | . . . . . . Retrieved Matter . | . . . . . . Parts Self-Destructed 3 | . . . 3 . . Prevented . | . . . . . . Kills | -11 -10 -10 -10 -8 -6 ------- Run | Yrd Mat Min Sub Rec Fac Combat Hostiles Destroyed 1 | . 1 . . . . Guns 1 | . 1 . . . . Classes Destroyed 6 | 2 4 . . . . Tunneler 1 | 1 . . . . . Hauler 1 | . 1 . . . . Recycler 2 | 1 1 . . . . Operator 1 | . 1 . . . . Watcher 1 | . 1 . . . . Grunt 1 | . 1 . . . . Best Kill Streak 2 | 2 2 . . . . Combat Bots Only 1 | . 1 . . . . Max Kills in Single Turn 1 | 1 1 . . . . Gunslinging . | . . . . . . Exploded . | . . . . . . Melee . | . . . . . . Uniques/NPCs Destroyed . | . . . . . . Combat | -11 -10 -10 -10 -8 -6 -------- Run | Yrd Mat Min Sub Rec Fac Hostile Shots Fired 184 | . 25 . 11 18 130 Missed 72 | . 11 . 5 6 50 Damage Taken 1707 | . 140 . 59 168 1340 Core 987 | . 41 . 9 69 868 Absorbed by Shields . | . . . . . . Regen/Repaired (Parts) 89 | . . . . . 89 Core Remaining (%) 76 | 100 . . . 52 . Volleys Fired 69 | 2 16 15 7 15 14 Largest 2 | 2 2 1 1 1 1 Hottest 100 | 90 90 100 100 100 100 Shots Fired 87 | 4 32 15 7 15 14 Gun 48 | 4 32 . . . 12 Cannon . | . . . . . . Launcher . | . . . . . . Special 39 | . . 15 7 15 2 Kinetic . | . . . . . . Thermal 69 | 2 16 15 7 15 14 Explosive . | . . . . . . Electromagnetic 18 | 2 16 . . . . Robot Hit Streak 8 | 2 8 . . . 6 Robot Miss Streak 3 | 1 3 . . . . Penetration Max . | . . . . . . Secondary Targets . | . . . . . . Shots Hit Robots 24 | 2 19 . . . 3 Core Hits 10 | 2 8 . . . . Critical Kills . | . . . . . . Critical Parts Destroyed . | . . . . . . Critical Strikes 2 | . . . . . 2 Burn 2 | . . . . . 2 Melee Attacks . | . . . . . . Impact . | . . . . . . Slashing . | . . . . . . Piercing . | . . . . . . Sneak Attacks . | . . . . . . Combat Hostiles . | . . . . . . Follow-up Attacks . | . . . . . . Damage Inflicted 321 | 27 259 . . . 35 Guns 321 | 27 259 . . . 35 Cannons . | . . . . . . Explosions . | . . . . . . Melee . | . . . . . . Ramming . | . . . . . . Kinetic . | . . . . . . Thermal 159 | 12 112 . . . 35 Explosive . | . . . . . . Electromagnetic 162 | 15 147 . . . . Impact . | . . . . . . Slashing . | . . . . . . Piercing . | . . . . . . Highest Corruption . | . . . . . . Average Corruption . | . . . . . . Corruption Purged . | . . . . . . Corruption Blocked . | . . . . . . Overload Shots . | . . . . . . Overflow Damage . | . . . . . . Projectiles . | . . . . . . Explosions . | . . . . . . Melee . | . . . . . . Knockbacks . | . . . . . . Impact . | . . . . . . Kinetic . | . . . . . . Secondary . | . . . . . . Self-Inflicted Damage . | . . . . . . Shots . | . . . . . . Rammed . | . . . . . . Targets Rammed . | . . . . . . Kicked . | . . . . . . Crushed . | . . . . . . Highest Temperature 259 | 30 240 259 . 117 34 Average Temperature 66 | 17 76 103 . 41 14 Received Heat Transfer 126 | . 60 . . 45 21 Effects 1 | . . 1 . . . Energy Bleed 1 | . . 1 . . . Siege Activations . | . . . . . . Robots Corrupted . | . . . . . . Combat Hostiles . | . . . . . . Parts Fried 2 | . 2 . . . . Impact Corruptions . | . . . . . . Robots Melted . | . . . . . . Combat Hostiles . | . . . . . . Parts Melted . | . . . . . . Heat Transferred 592 | 37 333 . . . 222 Parts Sabotaged . | . . . . . . Parts Stolen . | . . . . . . Parts Stripped . | . . . . . . Power Chain Reactions . | . . . . . . Alert | -11 -10 -10 -10 -8 -6 ------- Run | Yrd Mat Min Sub Rec Fac Peak Influence 95 | 10 95 85 . 95 59 Initial 33 | . 6 33 . 19 . Average 32 | 8 38 57 . 47 13 Maximum Alert Level . | . . . . . . Low Security (%) 100 | 100 100 100 . 100 100 Level 1 . | . . . . . . Level 2 . | . . . . . . Level 3 . | . . . . . . Level 4 . | . . . . . . Level 5 . | . . . . . . High Security . | . . . . . . Max Security . | . . . . . . Squads Dispatched 5 | . 1 . . . 4 Investigation 1 | . . . . . 1 Extermination 1 | . . . . . 1 Reinforcement 3 | . 1 . . . 2 Assault . | . . . . . . Garrison . | . . . . . . Intercept . | . . . . . . Searches Triggered . | . . . . . . Construction Impeded . | . . . . . . Haulers Reinforced . | . . . . . . Active Scanning Responses . | . . . . . . Cargo Convoy Interrupts . | . . . . . . Stealth | -11 -10 -10 -10 -8 -6 --------- Run | Yrd Mat Min Sub Rec Fac Distress Signals 6 | . 1 . . . 5 Communications Jammed . | . . . . . . Distress Signals . | . . . . . . Times Spotted 47 | . 15 1 3 5 23 Peak Tracking Total 8 | . 8 2 1 3 8 Tactical Retreats 6 | . 2 1 . 2 1 Traps | -11 -10 -10 -10 -8 -6 ------- Run | Yrd Mat Min Sub Rec Fac Traps Triggered . | . . . . . . Indirectly . | . . . . . . Trap Hack Attempts . | . . . . . . Triggered . | . . . . . . Disarmed 4 | . 4 . . . . Reprogrammed . | . . . . . . Reused . | . . . . . . Traps Extracted . | . . . . . . Installed . | . . . . . . Triggered . | . . . . . . Machines | -11 -10 -10 -10 -8 -6 ---------- Run | Yrd Mat Min Sub Rec Fac Machines Disabled 1 | . 1 . . . . Max in Single Turn 1 | . 1 . . . . Machines Repaired . | . . . . . . Machines Dismantled . | . . . . . . Machines Sabotaged . | . . . . . . Overloaded Fab Kills . | . . . . . . Hacking | -11 -10 -10 -10 -8 -6 --------- Run | Yrd Mat Min Sub Rec Fac Machines Accessed 18 | . 6 1 . 10 1 Terminals 9 | . 5 . . 4 . Fabricators . | . . . . . . Repair Stations 2 | . 1 . . . 1 Recycling Units 6 | . . . . 6 . Scanalyzers . | . . . . . . Garrison Access . | . . . . . . Total Hacks 39 | . 11 1 . 22 5 Successful 22 | . 5 1 . 12 4 Failed 17 | . 6 . . 10 1 Catastrophic 2 | . 2 . . . . Database Lockouts . | . . . . . . Manual . | . . . . . . Terminals 15 | . 8 . . 7 . Fabricators . | . . . . . . Repair Stations 8 | . 3 . . . 5 Recycling Units 15 | . . . . 15 . Scanalyzers . | . . . . . . Garrison Access . | . . . . . . Terminal Hacks 9 | . 4 1 . 4 . Record 1 | . . . . 1 . Robot Analysis 1 | . . . . 1 . Prototype ID Bank 1 | . 1 . . . . Open Door 1 | . . 1 . . . Locate Traps 1 | . 1 . . . . Disarm Traps 1 | . 1 . . . . Dispatch Records 1 | . . . . 1 . Maintenance Status 1 | . . . . 1 . Zone Layout 1 | . 1 . . . . Fabricator Hacks . | . . . . . . Repair Station Hacks 5 | . 1 . . . 4 Scan Component 3 | . 1 . . . 2 Repair 2 | . . . . . 2 Recycling Unit Hacks 8 | . . . . 8 . Report Inventory 7 | . . . . 7 . Retrieve Components 1 | . . . . 1 . Scanalyzer . | . . . . . . Garrison Access Hacks . | . . . . . . Unauthorized Hacks . | . . . . . . Terminals . | . . . . . . Fabricators . | . . . . . . Repair Stations . | . . . . . . Recycling Units . | . . . . . . Scanalyzers . | . . . . . . Garrison Access . | . . . . . . Data Cores Recovered . | . . . . . . Used . | . . . . . . Hacking Detections 12 | . 5 . . 7 . Full Trace Events . | . . . . . . Feedback Events . | . . . . . . Feedback Blocked . | . . . . . . Robot Schematics Acquired . | . . . . . . Robots Built . | . . . . . . Authchips . | . . . . . . Time . | . . . . . . Total Robot Build Rating . | . . . . . . Part Schematics Acquired . | . . . . . . Parts Built . | . . . . . . Authchips . | . . . . . . Time . | . . . . . . Total Part Build Rating . | . . . . . . Parts Repaired 2 | . . . . . 2 Time 82 | . . . . . 82 Parts Recycled . | . . . . . . Recycled Matter . | . . . . . . Retrieved Matter . | . . . . . . Retrieved Components 2 | . . . . 2 . Parts Scanalyzed . | . . . . . . Part Schematics Acquired . | . . . . . . Parts Damaged . | . . . . . . Bothacking | -11 -10 -10 -10 -8 -6 ------------ Run | Yrd Mat Min Sub Rec Fac Used RIF Installer . | . . . . . . Robots Hacked . | . . . . . . Non-combat . | . . . . . . Combat . | . . . . . . Robot Hacks Applied . | . . . . . . Relay Couplers Released . | . . . . . . Fabnet Peak Effective % . | . . . . . . Robots Rewired . | . . . . . . Allies Hacked . | . . . . . . Hacks Repelled . | . . . . . . Allies | -11 -10 -10 -10 -8 -6 -------- Run | Yrd Mat Min Sub Rec Fac Total Allies . | . . . . . . Largest Group . | . . . . . . Highest-Rated Group . | . . . . . . Highest-Rated Ally . | . . . . . . Total Orders . | . . . . . . Ally Attacks . | . . . . . . Total Damage . | . . . . . . Kills . | . . . . . . Allies Corrupted . | . . . . . . Allies Melted 1 | . . . 1 . . Intel | -11 -10 -10 -10 -8 -6 ------- Run | Yrd Mat Min Sub Rec Fac Robot Analysis Total 1 | . . . . 1 . Derelict Logs Recovered 2 | . . 2 . . . Drone Launches 16 | . . . . . 16 Drone Recoveries . | . . . . . . Exploration | -11 -10 -10 -10 -8 -6 ------------- Run | Yrd Mat Min Sub Rec Fac Turns Passed 2123 | 368 527 247 175 432 374 Spaces Moved 2965 | 66 660 521 431 827 460 Core 129 | 2 1 . . . 126 Treads . | . . . . . . Legs 227 | . 227 . . . . Wheels 87 | 64 23 . . . . Hover . | . . . . . . Flight 2522 | . 409 521 431 827 334 Fastest Speed 32 | 50 32 32 32 32 32 Average Speed 44 | 87 65 32 32 41 43 Slowest Speed 300 | 95 300 32 32 115 250 Overloaded Moves . | . . . . . . Propulsion Burnouts . | . . . . . . Robots Hopped 7 | . 1 2 . 4 . Cave-ins Triggered . | . . . . . . Exploration Rate (%) 49 | 5 71 97 24 85 16 Regions Visited 5 Branch Regions 3 Pre-discovered Areas . | . . . . . . Known Exits Taken 4 | . 1 1 1 1 . Unknown Exits Taken 1 | 1 . . . . . Scrap Searched 1 | . . 1 . . . Spaces Dug 23 | . . 9 . 14 . Terrain Destroyed 25 | . . 10 . 15 . Melee . | . . . . . . Projectile 25 | . . 10 . 15 . AOE . | . . . . . . Terrain Rammed . | . . . . . . Walls Destroyed . | . . . . . . Machines Disabled . | . . . . . . Actions | -11 -10 -10 -10 -8 -6 --------- Run | Yrd Mat Min Sub Rec Fac Total 3580 | 368 728 553 446 869 616 Wait 489 | 286 20 16 9 27 131 Move 2946 | 65 657 516 430 818 460 Hop 7 | . 1 2 . 4 . Pick Up 14 | 8 5 1 . . . Fast Attach 21 | 7 6 . . 3 5 Attach 7 | . 2 1 . . 4 Detach 6 | . 4 . . . 2 Swap 3 | . 2 1 . . . Drop 18 | . 15 1 . 2 . Fire 69 | 2 16 15 7 15 14 Melee . | . . . . . . Ram . | . . . . . . Kick . | . . . . . . Crush . | . . . . . . Escape Stasis . | . . . . . . Rewire . | . . . . . . Trap . | . . . . . . Miscellaneous . | . . . . . . Route ------- -11/Scrapyard -10/Materials (discovered 3 exits: *Mat x2 / *Min) -10/Mines (discovered 3 exits: *Mat x2 / *Sub) -10/Subcaves (discovered 2 exits: *Mat / *Rec) -8/Recycling -6/Factory History --------- Turn | Location | Event 11 | -11/Scrapyard | Discovered new exit (range 16) 369 | -11/Scrapyard | Entered Materials 370 | -10/Materials | Build established: Mutant 766 | -10/Materials | Discovered new exit (range 16) 770 | -10/Materials | Identified exit to Materials 821 | -10/Materials | Discovered new exit (range 10) 823 | -10/Materials | Identified exit to Mines 851 | -10/Materials | Discovered exit to Materials (range 5) 896 | -10/Materials | Entered Mines 923 | -10/Mines | Met a Derelict bent on vengeance 938 | -10/Mines | Discovered exit to Materials (range 6) 940 | -10/Mines | Discovered exit to Materials (range 11) 1031 | -10/Mines | Build established: Sprinter 1076 | -10/Mines | Found the Drone Emporium 1079 | -10/Mines | Found Prototype Device 1089 | -10/Mines | Identified exit to Subcaves 1143 | -10/Mines | Entered Subcaves 1145 | -10/Subcaves | Discovered new exit (range 9) 1148 | -10/Subcaves | Identified exit to Materials 1313 | -10/Subcaves | Discovered new exit (range 16) 1318 | -10/Subcaves | Identified exit to Recycling 1318 | -10/Subcaves | Entered Recycling 1422 | -8/Recycling | Discovered new exit (range 6) 1442 | -8/Recycling | Identified exit to Factory 1750 | -8/Recycling | Entered Factory 1750 | -6/Factory | Evolved 8 slots: Power x1, Propulsion x2, Utility x4, Weapon x1 1750 | -6/Factory | Identified Decoy Drone Bay 1815 | -6/Factory | Repaired Broken VTOL Module 1855 | -6/Factory | Repaired Nuclear Core 2056 | -6/Factory | Core integrity fell below 50% 2086 | -6/Factory | Lost 9 parts (1p2n5u1w) 2117 | -6/Factory | Core integrity fell below 20% 2122 | -6/Factory | Lost 7 allies 2124 | -6/Factory | Destroyed by H-66 Slayer with Gauss Rifle Last Messages --------------- 02084_ K-01 Serf pushes Decoy Drone. 02084_ K-01 Serf collects debris. 02085_ K-01 Serf pushes Decoy Drone. 02086_ K-01 Serf latches onto Decoy Drone. 02086_ K-01 Serf pushes Decoy Drone. 02087_ Slug penetrates K-01 Serf. 02087_ K-01 Serf destroyed. 02087_ K-01 Serf pushes Decoy Drone. 02087_ ALERT: Hostiles spotted, dispatching reinforcements to Terminal F006. 02092_ K-01 Serf collects debris. 02095_ Acquired 10 matter. 02109_ Penetrated by Slug. 02112_ Slug penetrates Wall. 02112_ Penetrated by Slug. 02115_ Slug penetrates Wall. 02116_ Penetrated by Slug. 02121_ Slug penetrates Wall. 02121_ Penetrated by Slug. 02124_ Slug penetrates Wall. Map ----- +----------------------------------------------------+ | ?????????????????????????????????????????????????? | | ?????????????????????????????????????????????????? | | ###+##?# ???????????????????????????????????????? | | + ]// ???????????????????????????????????????? | | # /// ####???????????????????????????????????? | | # /// #???????????????????????????????????? | | + #???????????????????????????????????? | | # +???????????????????????????????????? | | ??# #???????????????????????????????????? | | ??# #???????????????????????????????????? | | ??# """ #???????????????????????????????????? | | ### """ ###+####????????????????????????????? | | """ #????????????????????????????? | | #????????????????????????????? | | """ h #??????###########???????????? | | """ ######## """"???????????? | | """ + ""Y""??????????? | | # # #????????? | | # """ # """ #????????? | | # """ # """ #????????? | | + """ # """ ]]??????????? | | # ^ ; ] #????????? | | # """ # """ ??????????? | | # """ # """ ????????????? | | # """ # """ ????????????? | | # @ # ?? ???????????? | | # ]! # ?????????????? | | # ]! ## ###?##?????????????? | | # ! #?##??????????????????? | | # #?????????????????????? | | # k t #?????????????????????? | | #########+############ #?????????????????????? | | ????????? ??????????# #?????????????????????? | | ?????????????????????# #?????????????????????? | | ?????????????????????# +?????????????????????? | | ?????????????????????# #?????????????????????? | | ?????????????????????# #?????????????????????? | | ?????????????????????# +?????????????????????? | | ?????????????????????#+#+##??????????????????????? | | ?????????????????????????????????????????????????? | | ?????????????????????????????????????????????????? | | ?????????????????????????????????????????????????? | | ?????????????????????????????????????????????????? | | ?????????????????????????????????????????????????? | | ?????????????????????????????????????????????????? | | ?????????????????????????????????????????????????? | | ?????????????????????????????????????????????????? | | ?????????????????????????????????????????????????? | | ?????????????????????????????????????????????????? | | ?????????????????????????????????????????????????? | +----------------------------------------------------+ Best States ------------- Heat Dissipation 37 Energy Generation 15 Energy Capacity 265 Matter Stores 300 Matter Capacity 300 Sight Range 16 Robot Scan Range 14 Terrain Scan Range 16 Terrain Scan Density 10 Power Amplification 20 Additional Mass Support 6 Evasion (%) 63 Targeting Accuracy 8 Offensive Hacking 10 Item Schematics ----------------- None Robot Schematics ------------------ None Fabricated ------------ Nothing Alien Tech Used ----------------- None Achievements -------------- Release The Drones! Challenges ------------ None Game ------ Seed FireSlugLoader Manual? 0 Play Time 00:56:47 Cumulative 27.7 hours Start 2024.05.27 @ 19:25:39 End 2024.05.27 @ 20:23:50 Sessions 1 Manual Loads 0 Difficulty Rogue Special Mode None Game No. 38 Rogue 38 Adventurer 0 Explorer 0 Win Type - Total 0 Types 0/0/0/0/0/0/0/0/0 Lore% 18 Gallery% 15 Achievement% 16 Wizard Run 0 Options --------- Layout 2 ASCII 1 Keyboard 1 Movement Vi Keybinds 0 Fullscreen 2 Font 40/SmallcapsGlow Map View 50x44 Zoom Use 0% Tactical HUD 1 Map Filters NONE Filters NONE Steam 0 RUN: 45625827-b9db-44f7-92a3-f56925a04768